bitfinex/quotes_ETHUSD_20250123
["timestamp","ask_amount","ask_price","bid_price","bid_amount"]
[1737646482368,0.5,3246.8,3244.0,1.12735708]
[1737646482584,0.75,3246.8,3244.0,0.8825]
[1737646482747,0.55,3246.4,3244.1,1.55870872]
[1737646483482,0.55,3246.2,3244.1,1.55870872]
[1737646483999,0.25,3246.8,3244.1,1.55870872]
[1737646484000,0.25,3246.6,3244.1,1.55870872]
[1737646484193,0.5,3246.3,3244.1,1.55870872]
[1737646484492,0.55,3246.2,3244.3,1.59760636]
[1737646485291,0.55,3246.0,3244.3,1.59760636]
[1737646486189,0.55,3246.0,3244.5,1.51285703]
[1737646486377,0.1336,3246.1,3244.5,1.51285703]
[1737646487085,0.1336,3246.1,3244.7,1.50042832]
[1737646487247,0.1336,3246.1,3244.8,1.74404437]
[1737646488256,0.55,3246.0,3244.7,1.50042832]
[1737646489526,0.1336,3246.7,3244.9,1.57356721]
[1737646489825,0.1336,3246.7,3244.6,0.9603]
[1737646490018,0.1336,3246.7,3244.5,1.51285703]
[1737646490199,0.1336,3246.7,3244.7,0.8816]
[1737646490368,0.1336,3246.7,3245.0,1.55943988]
[1737646490567,0.1336,3246.7,3244.9,0.8816]
[1737646490568,0.1336,3246.7,3245.2,1.53857498]
[1737646490819,0.55,3246.6,3245.2,1.53857498]
[1737646493318,0.1336,3246.7,3245.2,1.53857498]
[1737646494891,0.1336,3246.7,3245.4,1.51169031]
[1737646500907,0.55,3246.4,3245.2,1.53857498]
[1737646501113,0.55,3246.2,3245.0,1.55943988]
[1737646501309,0.1336,3246.3,3245.0,1.55943988]
[1737646501310,0.1336,3246.3,3245.0,1.80927387]
[1737646501516,0.1336,3246.7,3245.2,1.53857498]
[1737646501857,0.5,3248.4,3245.8,2.48660936]
[1737646501858,0.1336,3247.2,3245.8,2.48660936]
[1737646502062,0.1336,3248.1,3246.0,1.57196744]
[1737646502755,0.55,3248.0,3246.0,1.57196744]
[1737646503060,0.6836,3247.8,3246.0,1.57196744]
[1737646503210,0.3093259,3247.9,3246.0,1.57196744]
[1737646503543,0.55,3247.4,3246.2,1.57359463]
[1737646504534,0.1336,3247.5,3245.9,0.9503]
[1737646504535,0.55,3247.2,3246.4,1.51085035]
[1737646504729,0.55,3247.0,3246.4,1.57577075]
[1737646505438,0.1336,3246.8,3246.4,1.56942313]
[1737646506062,0.5,3248.2,3244.8,3.08181]
[1737646506063,0.1336,3247.9,3246.0,1.54407929]
[1737646506262,0.6836,3247.8,3246.0,1.54407929]
[1737646506560,0.55,3248.0,3246.0,1.54407929]
[1737646506761,0.55,3248.0,3245.6,1.54834792]
[1737646506962,0.55,3247.4,3245.1,0.9293]
[1737646507128,0.1336,3247.4,3245.2,1.52426408]
[1737646507609,0.1336,3247.3,3245.2,1.52426408]
[1737646507862,0.1336,3247.3,3245.2,1.76962049]
[1737646509943,0.1336,3247.3,3245.4,1.59267449]
[1737646510861,0.1336,3247.3,3245.5,1.54910242]
[1737646512639,0.1336,3247.3,3245.4,0.9299]
[1737646512970,0.1336,3247.3,3245.5,1.54910242]
[1737646513181,0.1336,3247.3,3245.5,1.79700266]
[1737646513469,0.1336,3247.3,3245.5,0.24790024]
[1737646513648,0.1336,3247.3,3245.4,0.9299]
[1737646514832,0.46612997,3247.2,3245.4,0.9299]
[1737646515042,0.1336,3247.3,3245.4,0.9299]
[1737646515236,0.1336,3247.3,3245.5,0.9567]
[1737646515446,0.1336,3247.3,3245.6,0.9567]
[1737646518067,0.55,3247.2,3245.6,0.9567]
[1737646518273,0.1336,3247.3,3245.6,0.9567]
[1737646518447,0.1336,3247.3,3244.9,1.5320274]
[1737646518448,0.1336,3247.3,3245.7,0.55]
[1737646518777,0.2078,3248.6,3245.7,0.55]
[1737646518950,0.2078,3248.6,3245.9,0.55]
[1737646519159,0.2078,3248.6,3246.1,0.9462]
[1737646519465,0.2078,3248.6,3246.2,0.9462]
[1737646519947,0.2078,3248.5,3246.2,0.9462]
[1737646520147,0.55,3248.4,3246.2,0.9462]
[1737646520458,0.55,3248.2,3246.2,0.9462]
[1737646520662,0.2078,3248.1,3246.3,0.24587483]
[1737646521045,0.55,3248.1,3246.3,0.24587483]
[1737646521867,0.55,3248.1,3246.3,1.81695452]
[1737646522370,0.7578,3248.5,3246.3,1.81695452]
[1737646522548,0.55,3248.3,3246.3,1.81695452]
[1737646522747,0.55,3248.3,3246.5,1.52367937]
[1737646523071,0.2078,3248.4,3246.5,1.52367937]
[1737646523440,0.2078,3248.4,3246.7,1.58205886]
[1737646523639,0.55,3248.3,3246.7,1.58205886]
[1737646523841,0.55,3248.3,3246.9,1.55033852]
[1737646524156,0.2078,3248.4,3247.1,1.5827894]
[1737646524474,0.2078,3248.4,3247.2,0.00203973]
[1737646525167,0.55,3248.3,3247.2,1.5070602]
[1737646525549,0.2078,3248.4,3247.4,1.55365232]
[1737646525741,0.2078,3248.4,3247.3,0.9718]
[1737646525742,0.2078,3248.4,3247.6,1.51334326]
[1737646525942,0.2078,3248.4,3247.8,1.57599977]
[1737646526175,0.2078,3248.4,3248.0,1.56943496]
[1737646526382,0.2078,3248.4,3248.2,1.5959594]
[1737646526683,0.2078,3248.4,3247.4,1.55365232]
[1737646526885,0.2078,3248.4,3247.6,1.51334326]
[1737646527048,0.2078,3249.0,3247.8,1.57599977]
[1737646527249,0.2078,3249.0,3248.0,1.56943496]
[1737646527552,0.2078,3249.0,3248.1,0.00203922]
[1737646527744,0.2078,3249.0,3247.8,0.00205226]
[1737646528371,0.55,3248.9,3247.8,0.00205226]
[1737646528571,0.165689,3249.2,3247.0,0.8949]
[1737646528572,0.2078,3248.8,3247.0,0.8949]
[1737646528773,0.55,3248.5,3247.0,0.8949]
[1737646528959,0.2078,3249.1,3247.0,1.14402352]
[1737646529177,0.2078,3249.1,3247.0,0.8949]
[1737646529370,0.2078,3248.8,3246.2,0.8953]
[1737646529575,0.2078,3248.7,3246.2,0.8953]
[1737646529775,0.55,3248.4,3246.2,0.8953]
[1737646529973,3.0,3248.9,3245.8,3.21588503]
[1737646529974,0.2078,3248.5,3246.4,2.49403309]
[1737646530178,0.2078,3248.5,3246.5,0.24940331]
[1737646530484,0.55,3248.4,3246.5,0.24940331]
[1737646530687,0.55,3248.4,3246.6,2.48509508]
[1737646530873,0.2078,3248.5,3246.6,1.50079508]
[1737646531185,0.2078,3248.5,3247.2,1.50502047]
[1737646531387,0.2078,3248.8,3247.4,1.55365232]
[1737646531590,5.39,3249.0,3247.5,0.9753]
[1737646531768,0.373489,3249.2,3247.4,1.55365232]
[1737646532089,0.165689,3249.2,3247.6,1.51334326]
[1737646532249,0.165689,3249.2,3247.7,3.01786839]
[1737646532448,0.165689,3249.2,3248.3,1.52127507]
[1737646532660,0.165689,3249.2,3248.5,1.58842523]
[1737646532865,0.165689,3249.2,3248.7,1.52871879]
[1737646533264,0.165689,3249.2,3248.9,1.58400133]
[1737646533485,0.165689,3249.2,3249.0,0.928]
[1737646533685,0.165689,3249.2,3249.0,1.23774898]
[1737646534060,0.165689,3249.2,3249.1,0.928]
[1737646534488,0.165689,3249.2,3249.1,0.98117644]
[1737646535279,0.2078,3250.8,3249.2,1.56144772]
[1737646535793,0.2078,3250.8,3249.4,1.56840626]
[1737646535988,0.2078,3250.8,3249.5,0.05274307]
[1737646536155,0.2078,3250.8,3249.5,1.62841414]
[1737646536666,0.2078,3251.8,3249.7,1.54414554]
[1737646536871,0.2078,3251.8,3249.9,1.55367447]
[1737646537283,0.2078,3251.8,3249.8,0.04794955]
[1737646537284,0.2078,3252.3,3250.1,1.5713832]
[1737646537630,0.2078,3252.3,3250.3,1.54210763]
[1737646537779,0.2078,3252.3,3250.5,1.51533974]
[1737646538088,0.2078,3252.3,3250.2,0.51854624]
[1737646538089,0.2078,3252.1,3250.7,1.51325676]
[1737646538257,0.68371429,3252.1,3250.7,1.51325676]
[1737646538461,0.2078,3252.1,3250.9,1.52833306]
[1737646538693,0.55,3252.0,3251.1,1.56686784]
[1737646539098,0.55,3252.0,3251.2,0.04227194]
[1737646540594,0.2078,3251.9,3251.2,0.04227194]
[1737646540794,0.2078,3251.7,3251.2,0.04227194]
[1737646541104,0.2078,3251.7,3251.1,1.56686784]
[1737646541105,0.55,3251.6,3251.3,0.03612736]
[1737646541283,0.55,3251.9,3249.9,1.53722122]
[1737646541489,0.2078,3252.0,3251.4,0.03502779]
[1737646541667,0.2078,3252.2,3249.9,1.54606629]
[1737646541997,0.2078,3251.9,3250.1,1.55981961]
[1737646542165,0.2078,3251.9,3250.3,1.51676846]
[1737646542366,0.2078,3251.9,3248.3,3.21588503]
[1737646542367,0.2078,3251.9,3250.5,1.53854196]
[1737646542566,0.2078,3251.9,3250.7,1.5081698]
[1737646542792,0.2078,3251.9,3250.9,1.59335256]
[1737646542988,0.55,3251.6,3251.0,0.03540554]
[1737646543188,0.55,3251.2,3249.9,1.54606629]
[1737646543599,0.55,3251.2,3250.1,1.55981961]
[1737646543802,0.55,3251.2,3250.3,1.51676846]
[1737646543987,0.2078,3251.8,3250.5,1.53854196]
[1737646544191,0.2078,3251.6,3249.9,1.54606629]
[1737646544399,0.2078,3252.0,3249.9,1.54606629]
[1737646544695,8.39,3252.2,3249.9,1.79316292]
[1737646544696,0.2078,3251.8,3249.9,1.79316292]
[1737646544905,0.2078,3252.0,3249.9,1.79316292]
[1737646545198,0.2202,3252.0,3250.1,1.55981961]
[1737646545367,0.55,3251.5,3250.3,1.51676846]
[1737646545569,0.55,3251.5,3249.9,1.54606629]
[1737646545871,0.55,3251.5,3248.6,3.32824]
[1737646545872,0.2202,3251.6,3250.1,2.48461961]
[1737646546402,0.2202,3251.6,3250.3,1.51676846]
[1737646546705,0.2202,3251.6,3250.5,1.53854196]
[1737646547073,0.2202,3251.6,3250.7,1.5081698]
[1737646547492,0.2202,3251.6,3250.9,1.59335256]
[1737646548008,0.165689,3252.4,3251.2,0.9174]
[1737646548180,0.065689,3252.4,3251.3,0.02856667]
[1737646548384,0.065689,3252.4,3251.4,0.9174]
[1737646548599,0.065689,3252.4,3251.5,0.02806535]
[1737646550078,0.55,3252.3,3251.5,0.02806535]
[1737646550277,0.065689,3252.4,3251.5,0.02806535]
[1737646550474,0.065689,3252.4,3251.1,0.9415]
[1737646550783,0.55,3252.0,3250.8,0.9263]
[1737646550999,0.55,3252.0,3250.9,0.02885706]
[1737646551177,0.2202,3252.1,3251.0,1.55994673]
[1737646551371,0.065689,3252.4,3251.2,0.9241]
[1737646551606,0.065689,3252.4,3251.3,0.02880398]
[1737646551971,0.065689,3252.4,3251.4,0.9241]
[1737646552307,0.065689,3252.4,3251.6,0.9014]
[1737646554078,0.065689,3252.4,3251.8,0.8991]
[1737646554278,0.065689,3252.4,3252.0,0.8991]
[1737646557076,0.5327,3253.7,3252.1,0.55]
[1737646557375,0.5327,3253.7,3252.2,0.9263]
[1737646559208,0.2202,3253.5,3252.2,0.9263]
[1737646560808,0.2202,3253.5,3251.2,0.9677]
[1737646561111,0.3125,3253.7,3251.9,0.9677]
[1737646561312,0.3125,3253.7,3252.4,2.46044705]
[1737646561515,0.3125,3253.7,3252.8,1.50848521]
[1737646561715,0.3125,3253.7,3253.1,1.53004543]
[1737646562084,0.3125,3253.7,3253.0,0.9047]
[1737646562492,0.3125,3253.7,3253.0,2.45912859]
[1737646562798,0.3125,3253.7,3252.4,2.9852]
[1737646562799,0.3125,3253.7,3253.3,1.57865232]
[1737646562990,0.3125,3253.7,3253.5,1.55568364]
[1737646563192,0.2202,3255.2,3253.6,3.05280374]
[1737646563490,0.2202,3255.2,3253.1,0.56820883]
[1737646563491,0.2202,3255.2,3253.8,1.56901841]
[1737646563903,0.2202,3255.2,3253.9,1.53001637]
[1737646564106,0.2202,3255.2,3253.9,0.00170744]
[1737646564305,0.55,3255.4,3253.8,0.0017203]
[1737646564629,0.55,3255.6,3253.4,0.00172292]
[1737646564807,0.55,3255.4,3253.4,0.00172292]
[1737646565005,0.55,3255.6,3253.5,0.24989915]
[1737646565539,0.2202,3255.5,3253.5,0.00164163]
[1737646565841,0.39922356,3255.4,3253.4,0.00196994]
[1737646566045,0.2202,3254.7,3252.9,0.9486]
[1737646566198,0.2202,3254.7,3253.0,0.00164187]
[1737646566395,0.55,3254.6,3253.0,0.00164187]
[1737646566626,0.2202,3254.7,3252.9,0.9486]
[1737646567494,0.2202,3254.7,3252.9,0.9205]
[1737646567703,0.2202,3254.7,3252.8,0.55]
[1737646567908,0.55,3254.6,3252.9,0.9205]
[1737646568110,0.55,3255.0,3252.9,0.9205]
[1737646568401,0.2202,3254.8,3252.9,0.9205]
[1737646569038,0.2202,3254.6,3252.9,0.9205]
[1737646569195,0.2202,3254.6,3252.5,0.9515]
[1737646569833,0.55,3254.3,3252.5,0.9515]
[1737646570161,0.2202,3254.6,3252.5,0.9515]
[1737646570897,0.55,3254.3,3251.2,0.9085]
[1737646571101,0.55,3254.1,3251.2,0.9085]
[1737646571319,0.2202,3254.3,3251.2,0.9085]
[1737646571542,0.55,3253.7,3251.2,0.9085]
[1737646571753,0.2202,3253.4,3251.2,0.9085]
[1737646571955,0.55,3253.5,3251.1,0.15888038]
[1737646572258,0.55,3253.5,3250.8,0.9271]
[1737646572259,0.55,3253.1,3250.8,0.9271]
[1737646572425,0.55,3253.5,3250.8,0.9271]
[1737646572626,0.55,3253.3,3250.8,0.9271]
[1737646573165,0.55,3252.9,3250.8,0.9271]
[1737646573475,0.5625,3253.7,3250.4,0.9281]
[1737646573476,0.2202,3253.0,3250.4,0.9281]
[1737646573633,0.2202,3252.8,3250.6,0.9281]
[1737646574094,5.39,3253.2,3250.6,0.9281]
[1737646574234,0.2202,3252.5,3250.6,0.9281]
[1737646574584,0.2202,3252.3,3250.3,0.9552]
[1737646574880,0.94922356,3252.4,3248.8,0.9552]
[1737646575044,0.2202,3251.9,3248.8,0.9552]
[1737646575362,0.7817,3251.8,3248.8,0.9552]
[1737646575587,0.2317,3251.7,3248.8,0.9552]
[1737646576148,0.94922356,3251.6,3248.8,0.9552]
[1737646576334,0.5,3252.4,3248.8,0.9552]
[1737646576335,0.2317,3251.3,3248.8,0.9552]
[1737646576741,0.55,3251.2,3248.8,0.9552]
[1737646577379,0.55,3251.2,3249.0,0.9882]
[1737646577888,0.55,3251.2,3248.6,1.50024358]
[1737646577889,0.2317,3252.3,3249.3,0.9882]
[1737646578039,0.2317,3252.3,3249.1,0.55197272]
[1737646578040,0.2317,3252.3,3249.6,0.9882]
[1737646578239,0.2317,3252.3,3249.7,0.0020514]
[1737646578439,0.2317,3252.3,3249.8,0.9882]
[1737646578649,0.2317,3252.3,3249.9,0.00165674]
[1737646578891,0.2317,3252.3,3250.0,0.9155]
[1737646579396,0.2317,3252.3,3250.1,0.00172965]
[1737646579579,0.2317,3252.3,3250.2,0.9155]
[1737646580347,0.2317,3253.1,3250.4,0.55]
[1737646580686,0.2317,3253.1,3249.5,2.00921554]
[1737646580687,0.2317,3253.1,3250.1,0.9999]
[1737646580844,5.39,3252.8,3250.1,0.9999]
[1737646581048,0.55,3252.5,3250.1,0.9999]
[1737646581297,3.0,3252.6,3250.2,0.0016433]
[1737646581450,3.0,3252.6,3250.3,0.9348]
[1737646581646,0.55,3252.5,3250.3,0.9348]
[1737646581880,3.0,3252.6,3250.3,0.9348]
[1737646582354,3.0,3252.6,3249.6,0.00170903]
[1737646582355,3.0,3252.6,3250.4,0.55]
[1737646582547,0.3125,3253.7,3250.3,0.9348]
[1737646582548,0.2317,3253.6,3250.3,0.9348]
[1737646582775,0.3125,3253.7,3250.9,0.9348]
[1737646582960,0.3125,3253.7,3250.8,5.16338805]
[1737646583159,0.3125,3253.7,3251.2,0.55]
[1737646583403,0.3125,3253.7,3251.5,0.9348]
[1737646583607,0.2317,3253.6,3251.5,0.9348]
[1737646584106,0.69937149,3253.7,3251.5,0.9348]
[1737646584107,0.55,3253.5,3251.5,0.9348]
[1737646584384,0.55,3253.4,3251.5,0.9348]
[1737646584549,0.2317,3253.3,3251.5,0.9348]
[1737646585183,0.55,3252.8,3250.2,0.9799]
[1737646585685,0.55,3252.8,3250.3,0.55]
[1737646585891,0.55,3252.8,3250.4,0.9799]
[1737646586456,0.55,3252.4,3250.4,0.9799]
[1737646589425,0.2317,3252.1,3250.4,0.9799]
[1737646589713,0.55,3251.6,3248.8,0.9471]
[1737646590076,0.55,3251.6,3248.5,0.49999072]
[1737646590077,0.55,3251.6,3249.0,0.9567]
[1737646590715,0.2317,3251.7,3249.2,0.9853]
[1737646591014,0.2317,3251.7,3248.9,0.55]
[1737646591216,0.2317,3251.7,3248.7,0.55]
[1737646591512,0.55,3251.6,3249.3,0.9178]
[1737646592116,0.55,3251.4,3249.3,0.9178]
[1737646592864,0.2317,3251.5,3249.3,0.9178]
[1737646593086,0.2317,3251.5,3249.5,0.9178]
[1737646593860,0.2317,3251.5,3248.6,0.25]
[1737646593861,0.2317,3251.5,3249.7,0.9893]
[1737646595732,0.2317,3252.1,3249.7,0.9893]
[1737646595870,0.3125,3253.7,3249.9,1.5393]
[1737646595871,0.2317,3252.5,3249.9,1.5393]
[1737646596075,0.2317,3252.5,3250.2,0.55]
[1737646596303,0.2317,3252.5,3250.5,1.53854196]
[1737646596522,0.2317,3252.5,3250.7,0.9526]
[1737646596723,0.2317,3252.5,3250.9,0.9526]
[1737646596926,0.2317,3252.5,3251.0,0.00171142]
[1737646597419,0.2317,3252.5,3250.9,0.9526]
[1737646597823,0.55,3252.4,3250.9,0.9526]
[1737646597972,0.2317,3252.3,3250.5,0.9698]
[1737646598426,0.55,3252.0,3250.5,0.9698]
[1737646599644,0.55,3251.8,3250.5,0.9698]
[1737646599772,0.38687149,3252.9,3250.1,0.9616]
[1737646599773,0.55,3251.6,3250.1,0.9616]
[1737646600224,0.2317,3251.5,3249.7,0.9616]
[1737646600741,0.2317,3251.4,3249.7,0.9616]
[1737646601707,0.2317,3251.8,3249.4,0.9629]
[1737646601908,0.2317,3251.8,3249.6,0.9629]
[1737646602110,0.2317,3251.8,3249.6,0.55]
[1737646602439,1.85,3254.5,3249.6,0.55]
[1737646602440,0.2317,3253.5,3250.1,1.55981961]
[1737646602641,0.2317,3253.5,3250.3,0.9748]
[1737646602846,0.55,3253.4,3250.3,0.9748]
[1737646603032,0.2317,3253.3,3250.3,0.9748]
[1737646603203,0.2317,3253.2,3250.3,0.9748]
[1737646603408,0.2317,3253.1,3250.3,0.9748]
[1737646603610,0.2317,3253.1,3250.4,0.26961364]
[1737646603932,0.2317,3253.1,3250.5,1.53854196]
[1737646604256,0.2317,3253.1,3250.4,0.26961364]
[1737646604556,0.2317,3252.8,3250.3,0.9748]
[1737646604858,0.55,3252.7,3250.3,0.9748]
[1737646605154,0.7844,3252.9,3250.3,0.9748]
[1737646605376,0.38687149,3253.0,3250.3,0.9748]
[1737646605377,0.2344,3252.8,3250.3,0.9748]
[1737646605878,0.38687149,3253.0,3250.3,0.9748]
[1737646605879,0.55,3252.3,3250.3,0.9748]
[1737646606188,0.55,3252.1,3250.3,0.9748]
[1737646606475,0.55,3252.3,3250.3,0.9748]
[1737646606678,0.55,3252.5,3250.3,0.9748]
[1737646606826,0.2344,3252.2,3250.3,0.9748]
[1737646607177,0.2344,3252.4,3250.3,0.9748]
[1737646607494,0.55,3251.7,3250.3,0.9748]
[1737646608642,0.2344,3251.6,3248.7,0.9148]
[1737646609002,0.55,3251.3,3249.3,1.55670128]
[1737646609193,0.55,3251.3,3249.5,2.42402482]
[1737646609369,0.2344,3251.4,3249.7,0.9148]
[1737646609535,3.0,3252.4,3249.6,0.55]
[1737646609536,0.2344,3252.3,3250.2,1.51035439]
[1737646609733,0.2344,3252.3,3249.7,1.59540225]
[1737646610046,0.55,3252.2,3250.1,0.9148]
[1737646610261,0.55,3252.2,3250.2,1.51035439]
[1737646610435,0.55,3252.2,3250.3,0.24251544]
[1737646610632,0.2344,3252.2,3250.3,0.24251544]
[1737646611033,0.2344,3252.2,3250.1,0.9148]
[1737646612787,0.2344,3252.2,3250.2,1.51035439]
[1737646613014,0.2344,3252.2,3250.3,0.9051]
[1737646613591,0.2344,3252.2,3250.4,0.97518022]
[1737646614612,0.2344,3252.2,3250.6,0.9738]
[1737646614798,0.2344,3252.2,3250.7,0.00165624]
[1737646615288,0.2344,3252.2,3250.8,0.98]
[1737646615482,0.2344,3253.4,3251.1,0.55]
[1737646615794,0.2344,3253.4,3251.5,0.98]
[1737646615996,0.2344,3253.4,3251.6,0.98142596]
[1737646617110,0.2344,3253.4,3251.6,0.98]
[1737646617285,0.2344,3253.4,3251.7,0.00164259]
[1737646617685,0.2344,3253.4,3251.7,0.55164259]
[1737646618198,0.2344,3253.4,3252.0,0.9175]
[1737646618397,0.2344,3253.4,3252.1,0.00165571]
[1737646621328,0.2344,3253.4,3252.2,1.5071816]
[1737646621619,0.3125,3253.7,3252.6,2.56126764]
[1737646621822,0.3125,3253.7,3252.8,1.50848521]
[1737646622000,0.3125,3253.7,3253.0,1.55442859]
[1737646623539,0.5469,3253.7,3252.9,0.9722]
[1737646623887,0.5469,3253.7,3253.0,1.59643117]
[1737646624510,0.5469,3253.7,3252.9,0.9722]
[1737646624717,0.3125,3253.7,3253.0,1.59643117]
[1737646624915,0.3125,3253.7,3253.1,0.25686312]
[1737646625239,0.3125,3253.7,3253.2,0.9919]
[1737646628107,0.46218408,3253.7,3251.9,1.50586706]
[1737646628423,0.46218408,3253.7,3251.2,0.71098539]
[1737646628424,1.43068408,3253.7,3251.3,1.5118462]
[1737646628624,1.43068408,3253.7,3251.2,3.41660972]
[1737646628625,1.43068408,3253.7,3251.4,0.49284559]
[1737646628796,0.9208,3253.6,3251.4,0.49284559]
[1737646629206,0.9208,3253.4,3251.4,0.49284559]
[1737646630047,0.9208,3253.4,3251.5,0.55]
[1737646630849,0.9208,3253.4,3251.7,0.55]
[1737646630991,0.9208,3253.4,3251.6,35.0]
[1737646630992,3.07502,3252.1,3251.9,0.55]
[1737646631196,3.0749,3252.2,3252.0,1.4626]
[1737646631507,3.07413,3253.0,3252.4,0.9918]
[1737646631722,3.07368,3253.5,3252.8,0.55]
[1737646632042,0.3125,3253.7,3253.2,0.55]
[1737646632208,3.07389,3253.2,3253.1,0.9475]
[1737646632408,3.07408,3253.0,3252.9,35.0]
[1737646632643,3.07408,3253.0,3252.7,0.9475]
[1737646632885,3.07427,3252.8,3252.7,0.9475]
[1737646633047,3.07455,3252.5,3252.4,0.9475]
[1737646633359,3.07436,3252.7,3250.5,35.0]
[1737646633360,3.07585,3251.2,3250.5,35.0]
[1737646633663,3.0,3252.8,3250.5,35.0]
[1737646633664,3.07503,3252.0,3250.5,3.07639]
[1737646633865,3.07555,3251.5,3250.6,3.0]
[1737646634020,3.0,3252.4,3250.8,0.55]
[1737646634021,3.07522,3251.8,3250.8,0.55]
[1737646634213,3.07551,3251.5,3250.8,3.62611]
[1737646634436,6.15126,3251.4,3250.9,0.362611]
[1737646634637,3.07502,3252.1,3250.6,3.07632]
[1737646634851,0.9544,3253.7,3251.4,0.25]
[1737646635016,3.07502,3252.1,3251.3,3.07562]
[1737646635211,3.07495,3252.1,3251.5,35.0]
[1737646635433,3.07494,3252.1,3251.5,35.0]
[1737646635751,3.07491,3252.2,3251.7,0.55]
[1737646635919,3.0747,3252.4,3251.7,0.55]
[1737646636123,3.07464,3252.5,3251.9,0.55]
[1737646636467,3.07472,3252.4,3252.1,0.55]
[1737646636636,3.07477,3252.3,3252.1,0.55]
[1737646636967,3.07465,3252.4,3252.3,0.55]
[1737646637119,3.07465,3252.4,3252.3,3.10202562]
[1737646637881,3.07465,3252.4,3252.3,3.65202562]
[1737646638367,3.07429,3252.8,3252.6,0.55]
[1737646638571,3.07429,3252.8,3252.7,35.55]
[1737646639269,3.07409,3253.0,3252.8,0.55]
[1737646639774,3.07409,3253.0,3252.7,35.0]
[1737646639775,3.07427,3252.8,3252.7,35.0]
[1737646639976,3.07446,3252.6,3251.4,0.9909]
[1737646640118,3.07488,3252.2,3251.4,0.9909]
[1737646640323,3.07509,3252.0,3251.4,0.9909]
[1737646640553,3.07488,3252.2,3251.5,35.41227612]
[1737646640753,3.07492,3252.2,3251.5,0.41227612]
[1737646640970,3.07493,3252.1,3251.5,0.41227612]
[1737646641327,3.07493,3252.1,3251.6,35.0]
[1737646641576,3.07473,3252.4,3251.9,0.55]
[1737646641780,3.0,3253.2,3252.1,0.55]
[1737646641781,3.07448,3252.6,3252.1,0.55]
[1737646641922,3.07466,3252.4,3252.1,0.55]
[1737646642122,3.07466,3252.4,3252.2,35.0]
[1737646642365,3.07466,3252.4,3252.3,3.65202562]
[1737646642935,3.07466,3252.4,3252.3,3.10202562]
[1737646643144,3.0754,3251.6,3251.5,0.41227612]
[1737646643472,3.0754,3251.6,3251.3,0.05624123]
[1737646643473,3.07559,3251.4,3251.3,0.05624123]
[1737646643680,3.07559,3251.4,3251.3,1.04084123]
[1737646643975,3.07559,3251.4,3251.3,0.9846]
[1737646644460,3.07616,3250.9,3250.5,0.9992]
[1737646644622,3.07635,3250.6,3250.5,0.9992]
[1737646644822,3.07627,3250.7,3250.5,1.39072]
[1737646645224,3.07543,3251.6,3250.5,1.39072]
[1737646645422,5.39,3254.1,3250.5,1.39072]
[1737646645423,0.9242,3252.6,3251.2,0.55]
[1737646645629,3.07564,3251.4,3251.2,0.55]
[1737646645878,3.07569,3251.3,3251.2,0.55]
[1737646646022,3.07578,3251.2,3251.1,0.9084]
[1737646646547,3.07578,3251.2,3251.1,36.4584]
[1737646646731,3.07578,3251.2,3251.1,39.56042562]
[1737646646927,3.07564,3251.4,3251.2,0.55]
[1737646647341,3.07569,3251.3,3251.2,0.55]
[1737646648062,3.07551,3251.5,3251.2,0.55]
[1737646648268,3.07569,3251.3,3251.2,0.55]
[1737646648443,3.07569,3251.3,3251.2,3.65202562]
[1737646649342,3.07551,3251.5,3251.2,3.65202562]
[1737646649543,3.07569,3251.3,3251.2,3.65202562]
[1737646649737,3.07578,3251.2,3251.1,38.10202562]
[1737646650056,3.07616,3250.8,3250.7,0.9558]
[1737646650252,3.07635,3250.6,3250.5,0.39152]
[1737646650471,3.07635,3250.6,3250.5,35.39152]
[1737646651182,3.07635,3250.6,3250.5,35.94152]
[1737646651392,3.07601,3251.0,3250.6,0.55]
[1737646651698,3.07601,3251.0,3250.8,0.55]
[1737646651983,6.0755,3251.5,3250.8,0.55]
[1737646652294,3.07603,3251.0,3250.9,35.55]
[1737646652583,3.07603,3251.0,3250.9,35.0]
[1737646652991,3.07626,3250.7,3250.6,0.55]
[1737646653289,3.07581,3251.2,3250.8,0.55]
[1737646653697,3.07529,3251.8,3251.0,3.62589]
[1737646653852,3.07519,3251.9,3251.2,0.55]
[1737646654162,3.07409,3253.0,3251.0,3.62589]
[1737646654163,3.0748,3252.3,3251.6,3.62534]
[1737646654488,3.07421,3252.9,3252.0,0.55]
[1737646654689,3.07472,3252.4,3252.0,0.55]
[1737646654891,3.07493,3252.1,3252.0,0.55]
[1737646655279,3.07476,3252.3,3252.0,35.55]
[1737646655467,3.07487,3252.2,3252.1,3.65202562]
[1737646655992,3.07399,3253.1,3252.2,0.55]
[1737646656194,3.07421,3252.9,3252.4,0.55]
[1737646656409,3.07377,3253.4,3252.6,0.55]
[1737646656619,3.07296,3254.2,3252.9,0.55]
[1737646656897,0.9798,3254.6,3253.4,0.55]
[1737646656898,3.07353,3253.6,3253.4,0.55]
[1737646657255,3.07361,3253.5,3253.4,0.55]
[1737646658140,3.0737,3253.4,3253.3,0.9925]
[1737646658437,3.07399,3253.1,3253.0,35.15425]
[1737646659034,3.07386,3253.3,3253.1,0.55]
[1737646659215,3.07367,3253.5,3253.3,0.55]
[1737646659903,3.0737,3253.4,3253.3,0.55]
[1737646661842,3.07389,3253.3,3253.0,0.15425]
[1737646662250,3.07389,3253.2,3253.1,0.55]
[1737646662451,3.07389,3253.3,3253.1,0.55]